fUSD/lending_fUSD_20250215
["ID","MTS","AMOUNT","RATE_DAILY","PERIOD"]
[353128845,1739589032263,-908.0,0.00010895,2]
[353128846,1739589032274,-2956.0,0.00010895,2]
[353128847,1739589032284,-783.0,0.00010895,2]
[353128848,1739589032294,-1265.0,0.00010895,2]
[353128849,1739589032304,-4027.0,0.00010895,2]
[353128850,1739589032313,-539.0,0.00010895,2]
[353128851,1739589032323,-3583.013,0.00010895,2]
[353128852,1739589032333,-175.096,0.00010895,2]
[353128853,1739589032342,-775.59,0.000109,2]
[353128854,1739589032352,-407.45,0.000109,2]
[353128855,1739589032362,-170.28209592,0.00010938,2]
[353128856,1739589032372,-313.12177708,0.00010941,2]
[353128857,1739589032382,-501.45824212,0.00010958,2]
[353128858,1739589032391,-500.0,0.00010958,2]
[353128859,1739589032401,-500.0,0.00010958,2]
[353128860,1739589032410,-500.0,0.00010958,2]
[353128861,1739589032420,-500.0,0.00010958,2]
[353128862,1739589032429,-500.0,0.00010958,2]
[353128863,1739589032439,-500.0,0.00010958,2]
[353128864,1739589032448,-500.0,0.00010958,2]
[353128865,1739589032458,-500.0,0.00010958,2]
[353128866,1739589032468,-500.0,0.00010958,2]
[353128867,1739589032477,-500.0,0.00010958,2]
[353128868,1739589032486,-500.0,0.00010958,2]
[353128869,1739589032496,-500.0,0.00010958,2]
[353128870,1739589032505,-500.0,0.00010958,2]
[353128871,1739589032514,-500.0,0.00010958,2]
[353128872,1739589032523,-500.0,0.00010958,2]
[353128873,1739589032532,-500.0,0.00010958,2]
[353128874,1739589032542,-209.4774772,0.00010958,2]
[353128875,1739589032551,-500.0,0.00010958,2]
[353128876,1739589032561,-500.0,0.00010958,2]
[353128877,1739589032570,-500.0,0.00010958,2]
[353128878,1739589032580,-500.0,0.00010958,2]
[353128879,1739589032589,-500.0,0.00010958,2]
[353128880,1739589032599,-503.5933309,0.00010958,2]
[353128881,1739589032609,-500.0,0.00010958,2]
[353128882,1739589032619,-500.0,0.00010958,2]
[353128883,1739589032628,-500.0,0.00010958,2]
[353128884,1739589032637,-500.0,0.00010958,2]
[353128885,1739589032646,-500.0,0.00010958,2]
[353128886,1739589032655,-500.0,0.00010958,2]
[353128887,1739589032665,-500.0,0.00010958,2]
[353128888,1739589032674,-688.19,0.00010958,2]
[353128889,1739589032684,-500.0,0.00010958,2]
[353128890,1739589032694,-594.51,0.00010958,2]
[353128891,1739589032706,-500.0,0.00010958,2]
[353128892,1739589032716,-500.0,0.00010958,2]
[353128893,1739589032727,-500.0,0.00010958,2]
[353128894,1739589032739,-500.0,0.00010958,2]
[353128895,1739589032750,-507.1407854,0.00010958,2]
[353128896,1739589032761,-915.12,0.00010958,2]
[353128897,1739589032770,-500.0,0.00010958,2]
[353128898,1739589032781,-500.0,0.00010958,2]
[353128899,1739589032790,-789.08,0.00010958,2]
[353128900,1739589032800,-220.5726214,0.00010958,2]
[353128901,1739589032809,-500.0,0.00010958,2]
[353128902,1739589032818,-500.0,0.00010958,2]
[353128903,1739589032828,-505.49134608,0.00010958,2]
[353128904,1739589032837,-500.0,0.00010958,2]
[353128905,1739589032846,-508.12935007,0.00010958,2]
[353128906,1739589032856,-500.0,0.00010958,2]
[353128907,1739589032867,-500.0,0.00010958,2]
[353128908,1739589032876,-1288.83,0.00010958,2]
[353128909,1739589032887,-266.57456637,0.00010958,2]
[353128910,1739589032907,-233.42543363,0.00010958,2]
[353128911,1739589032916,-135.07386088,0.00010958,2]
[353128912,1739589032930,-364.92613912,0.00010958,2]
[353128913,1739589032940,-506.1989331,0.00010958,2]
[353128914,1739589032949,-500.0,0.00010958,2]
[353128915,1739589032959,-500.0,0.00010958,2]
[353128916,1739589032970,-329.36793026,0.00010958,2]
[353128917,1739589032982,-170.63206974,0.00010958,2]
[353128918,1739589032992,-504.2195304,0.00010958,2]
[353128919,1739589033002,-504.84807546,0.00010958,2]
[353128920,1739589033011,-507.51547839,0.00010958,2]
[353128921,1739589033021,-500.0,0.00010958,2]
[353128922,1739589033030,-500.0,0.00010958,2]
[353128923,1739589033041,-504.3779499,0.00010958,2]
[353128924,1739589033051,-500.0,0.00010958,2]
[353128925,1739589033061,-500.0,0.00010958,2]
[353128926,1739589033071,-742.92,0.00010958,2]
[353128927,1739589033081,-500.0,0.00010958,2]
[353128928,1739589033091,-500.0,0.00010958,2]
[353128929,1739589033101,-500.0,0.00010958,2]
[353128930,1739589033111,-500.0,0.00010958,2]
[353128931,1739589033121,-502.75,0.00010958,2]
[353128932,1739589033131,-508.56898053,0.00010958,2]
[353128933,1739589033141,-500.0,0.00010958,2]
[353128934,1739589033151,-500.0,0.00010958,2]
[353128935,1739589033161,-500.0,0.00010958,2]
[353128936,1739589033171,-500.0,0.00010958,2]
[353128937,1739589033180,-500.0,0.00010958,2]
[353128938,1739589033190,-500.0,0.00010958,2]
[353128939,1739589033200,-427.89094091,0.00010958,2]
[353128940,1739589033210,-500.0,0.00010958,2]
[353128941,1739589033220,-500.0,0.00010958,2]
[353128942,1739589033229,-500.0,0.00010958,2]
[353128943,1739589033239,-503.48288508,0.00010958,2]
[353128944,1739589033249,-500.0,0.00010958,2]
[353128945,1739589033259,-503.16038375,0.00010958,2]
[353128946,1739589033268,-500.0,0.00010958,2]
[353128947,1739589033278,-500.0,0.00010958,2]
[353128948,1739589033287,-721.58,0.00010958,2]
[353128949,1739589033297,-500.0,0.00010958,2]
[353128950,1739589033307,-505.51629205,0.00010958,2]
[353128951,1739589033316,-500.0,0.00010958,2]
[353128952,1739589033326,-500.0,0.00010958,2]
[353128953,1739589033336,-500.0,0.00010958,2]
[353128954,1739589033346,-508.7673259,0.00010958,2]
[353128955,1739589033356,-609.7,0.00010958,2]
[353128956,1739589033367,-588.73,0.00010958,2]
[353128957,1739589033378,-500.0,0.00010958,2]
[353128958,1739589033388,-690.44,0.00010958,2]
[353128959,1739589033399,-548.82,0.00010958,2]
[353128960,1739589033409,-502.29642057,0.00010958,2]
[353128961,1739589033419,-503.75981718,0.00010958,2]
[353128962,1739589033429,-506.90202221,0.00010958,2]
[353128963,1739589033439,-500.0,0.00010958,2]
[353128964,1739589033448,-500.0,0.00010958,2]
[353128965,1739589033458,-500.0,0.00010958,2]
[353128966,1739589033468,-500.0,0.00010958,2]
[353128967,1739589033477,-503.43150382,0.00010958,2]
[353128968,1739589033487,-500.0,0.00010958,2]
[353128969,1739589033497,-500.0,0.00010958,2]
[353128970,1739589033506,-500.0,0.00010958,2]
[353128971,1739589033516,-500.0,0.00010958,2]
[353128972,1739589033525,-500.0,0.00010958,2]
[353128973,1739589033535,-500.0,0.00010958,2]
[353128974,1739589033544,-502.70867159,0.00010958,2]
[353128975,1739589033553,-500.0,0.00010958,2]
[353128976,1739589033563,-500.0,0.00010958,2]
[353128977,1739589033573,-500.0,0.00010958,2]
[353128978,1739589033582,-500.0,0.00010958,2]
[353128979,1739589033592,-500.0,0.00010958,2]
[353128980,1739589033601,-585.0673915,0.00010958,2]
[353128981,1739589033612,-503.29385016,0.00010958,2]
[353128982,1739589033623,-500.0,0.00010958,2]
[353128983,1739589033634,-500.0,0.00010958,2]
[353128984,1739589033645,-500.0,0.00010958,2]
[353128985,1739589033656,-510.33,0.00010958,2]
[353128986,1739589033666,-943.68,0.00010958,2]
[353128987,1739589033676,-500.0,0.00010958,2]
[353128988,1739589033686,-500.0,0.00010958,2]
[353128989,1739589033695,-502.44698237,0.00010958,2]
[353128990,1739589033705,-500.0,0.00010958,2]
[353128991,1739589033714,-558.37,0.00010958,2]
[353128992,1739589033725,-502.81412099,0.00010958,2]
[353128993,1739589033735,-501.75962224,0.00010958,2]
[353128994,1739589033745,-1135.2,0.00010958,2]
[353128995,1739589033755,-500.0,0.00010958,2]
[353128996,1739589033765,-666.06,0.00010958,2]
[353128997,1739589033775,-717.34,0.00010958,2]
[353128998,1739589033785,-1412.44,0.00010958,2]
[353128999,1739589033795,-1881.77,0.00010958,2]
[353129000,1739589033805,-1198.66,0.00010958,2]
[353129001,1739589033815,-1240.08,0.00010958,2]
[353129002,1739589033825,-500.0,0.00010958,2]
[353129003,1739589033836,-1713.83,0.00010958,2]
[353129004,1739589033846,-500.0,0.00010958,2]
[353129005,1739589033855,-850.26,0.00010958,2]
[353129006,1739589033866,-500.0,0.00010958,2]
[353129007,1739589033875,-1761.91,0.00010958,2]
[353129008,1739589033887,-500.0,0.00010958,2]
[353129009,1739589033898,-500.0,0.00010958,2]
[353129010,1739589033908,-535.51600984,0.00010958,2]
[353129011,1739589033917,-500.0,0.00010958,2]
[353129012,1739589033929,-622.96,0.00010958,2]
[353129013,1739589033938,-770.38,0.00010958,2]
[353129014,1739589033948,-640.1,0.00010958,2]
[353129015,1739589033957,-507.16257361,0.00010958,2]
[353129016,1739589033967,-768.9,0.00010958,2]
[353129017,1739589033977,-789.64,0.00010958,2]
[353129018,1739589033988,-500.0,0.00010958,2]
[353129019,1739589033997,-500.0,0.00010958,2]
[353129020,1739589034008,-500.0,0.00010958,2]
[353129021,1739589034018,-500.0,0.00010958,2]
[353129022,1739589034027,-500.0,0.00010958,2]
[353129023,1739589034037,-500.0,0.00010958,2]
[353129024,1739589034047,-500.0,0.00010958,2]
[353129025,1739589034056,-500.0,0.00010958,2]
[353129026,1739589034066,-496.84,0.00010958,2]
[353129027,1739589034075,-490.29,0.00010958,2]
[353129028,1739589034086,-509.38,0.00010958,2]
[353129029,1739589034096,-490.45,0.00010958,2]
[353129030,1739589034106,-508.12,0.00010958,2]
[353129031,1739589034116,-150.0,0.00010959,2]
[353129032,1739589034127,-737.67,0.00010999,2]
[353129033,1739589034136,-555.152518,0.00010999,2]
[353129034,1739589034145,-500.0,0.00010999,2]
[353129035,1739589034155,-791.37,0.00010999,2]
[353129036,1739589034164,-622.28,0.00010999,2]
[353129037,1739589034173,-563.075632,0.00010999,2]
[353129038,1739589034183,-1137.52,0.00010999,2]
[353129039,1739589034426,-1050.23,0.00010999,2]
[353129040,1739589034438,-163.922843,0.00010999,2]
[353129041,1739589034447,-500.0,0.00010999,2]
[353129042,1739589034457,-500.0,0.00010999,2]
[353129043,1739589034466,-835.69,0.00010999,2]
[353129044,1739589034475,-994.93,0.00010999,2]
[353129045,1739589034484,-863.72,0.00010999,2]
[353129046,1739589034494,-805.02,0.00010999,2]
[353129047,1739589034503,-1133.46,0.00010999,2]
[353129048,1739589034512,-2246.0,0.00010999,2]
[353129049,1739589034521,-806.04,0.00010999,2]
[353129050,1739589034530,-1087.42,0.00010999,2]
[353129051,1739589034539,-1798.43,0.00010999,2]
[353129052,1739589034548,-1565.69,0.00010999,2]
[353129053,1739589034557,-1591.63,0.00010999,2]
[353129054,1739589034566,-1452.22,0.00010999,2]
[353129055,1739589034576,-6163.82,0.00010999,2]
[353129056,1739589034585,-4814.25,0.00010999,2]
[353129057,1739589034594,-500.0,0.00010999,2]
[353129058,1739589034603,-1512.76,0.00010999,2]
[353129059,1739589034612,-2020.61,0.00010999,2]
[353129060,1739589034622,-795.18,0.00010999,2]
[353129061,1739589034631,-1432.04,0.00010999,2]
[353129062,1739589034640,-775.59,0.00011,2]
[353129063,1739589034650,-783.82,0.00011,2]
[353129064,1739589034659,-775.59,0.00011,2]
[353129065,1739589034668,-500.0,0.00011003,2]
[353129066,1739589034677,-500.0,0.00011003,2]
[353129067,1739589034687,-500.0,0.00011003,2]
[353129068,1739589034697,-165.00124427,0.00011018,2]
[353129069,1739589034706,-410.49064449,0.00011018,2]
[353129070,1739589034715,-668.83,0.00011037,2]
[353129071,1739589034724,-500.0,0.00011037,2]
[353129072,1739589034733,-1002.31,0.00011037,2]
[353129073,1739589034744,-500.0,0.00011037,2]
[353129074,1739589034754,-701.01,0.00011037,2]
[353129075,1739589034764,-881.18,0.00011037,2]
[353129076,1739589034773,-801.63,0.00011037,2]
[353129077,1739589034784,-685.85,0.00011037,2]
[353129078,1739589034795,-1024.81,0.00011037,2]
[353129079,1739589034807,-920.05,0.00011037,2]
[353129080,1739589034817,-500.0,0.00011037,2]
[353129081,1739589034826,-606.48,0.00011037,2]
[353129082,1739589034836,-804.13,0.00011037,2]
[353129083,1739589034846,-1124.1,0.00011037,2]
[353129084,1739589034857,-687.42,0.00011037,2]
[353129085,1739589034870,-694.98,0.00011037,2]
[353129086,1739589034880,-500.0,0.00011037,2]
[353129087,1739589034893,-500.0,0.00011037,2]
[353129088,1739589034903,-1220.7,0.00011037,2]
[353129089,1739589034913,-800.31,0.00011037,2]
[353129090,1739589034922,-521.7,0.00011037,2]
[353129091,1739589034932,-500.0,0.00011037,2]
[353129092,1739589034943,-500.0,0.00011037,2]
[353129093,1739589034952,-516.8,0.00011037,2]
[353129094,1739589034962,-500.0,0.00011037,2]
[353129095,1739589034972,-685.13,0.00011037,2]
[353129096,1739589034981,-156.104928,0.00011037,2]
[353129097,1739589034990,-1044.51,0.00011037,2]
[353129098,1739589035000,-628.66,0.00011037,2]
[353129099,1739589035010,-500.0,0.00011038,2]
[353129100,1739589035019,-500.0,0.00011038,2]
[353129101,1739589035029,-180.1981936,0.00011038,2]
[353129102,1739589035039,-500.0,0.00011038,2]
[353129103,1739589035049,-500.0,0.00011038,2]
[353129104,1739589035059,-237.78193554,0.00011038,2]
[353129105,1739589035069,-525.29,0.00011038,2]
[353129106,1739589035078,-500.0,0.00011038,2]
[353129107,1739589035088,-500.0,0.00011038,2]
[353129108,1739589035099,-500.0,0.00011038,2]
[353129109,1739589035108,-500.0,0.00011038,2]
[353129110,1739589035120,-505.59022185,0.00011038,2]
[353129111,1739589035130,-500.0,0.00011038,2]
[353129112,1739589035139,-500.0,0.00011038,2]
[353129113,1739589035149,-500.0,0.00011038,2]
[353129114,1739589035158,-500.0,0.00011038,2]
[353129115,1739589035167,-500.0,0.00011038,2]
[353129116,1739589035176,-500.0,0.00011038,2]
[353129117,1739589035185,-500.0,0.00011038,2]
[353129118,1739589035195,-500.0,0.00011038,2]
[353129119,1739589035205,-500.0,0.00011038,2]
[353129120,1739589035214,-500.0,0.00011038,2]
[353129121,1739589035223,-500.0,0.00011038,2]
[353129122,1739589035232,-500.0,0.00011038,2]
[353129123,1739589035241,-500.0,0.00011038,2]
[353129124,1739589035250,-500.0,0.00011038,2]
[353129125,1739589035259,-500.0,0.00011038,2]
[353129126,1739589035268,-500.0,0.00011038,2]
[353129127,1739589035277,-500.0,0.00011038,2]
[353129128,1739589035286,-500.0,0.00011038,2]
[353129129,1739589035295,-500.94197218,0.00011038,2]
[353129130,1739589035304,-562.13,0.00011038,2]
[353129131,1739589035313,-500.0,0.00011038,2]
[353129132,1739589035322,-500.0,0.00011038,2]
[353129133,1739589035331,-500.0,0.00011038,2]
[353129134,1739589035340,-500.0,0.00011038,2]
[353129135,1739589035350,-500.0,0.00011038,2]
[353129136,1739589035359,-540.37,0.00011038,2]
[353129137,1739589035369,-500.0,0.00011038,2]
[353129138,1739589035379,-500.0,0.00011038,2]
[353129139,1739589035388,-502.96900455,0.00011038,2]
[353129140,1739589035397,-500.0,0.00011038,2]
[353129141,1739589035406,-500.0,0.00011038,2]
[353129142,1739589035415,-500.0,0.00011038,2]
[353129143,1739589035424,-500.0,0.00011038,2]
[353129144,1739589035433,-500.0,0.00011038,2]
[353129145,1739589035442,-507.31812007,0.00011038,2]
[353129146,1739589035451,-500.0,0.00011038,2]
[353129147,1739589035462,-500.0,0.00011038,2]
[353129148,1739589035471,-595.13898781,0.00011038,2]
[353129149,1739589035480,-500.0,0.00011038,2]
[353129150,1739589035490,-500.0,0.00011038,2]
[353129151,1739589035500,-500.0,0.00011038,2]
[353129152,1739589035509,-500.83140506,0.00011038,2]
[353129153,1739589035519,-500.0,0.00011038,2]
[353129154,1739589035528,-500.0,0.00011038,2]
[353129155,1739589035537,-500.0,0.00011038,2]
[353129156,1739589035547,-500.0,0.00011038,2]
[353129157,1739589035555,-545.82,0.00011038,2]
[353129158,1739589035564,-506.43924712,0.00011038,2]
[353129159,1739589035574,-435.15679277,0.00011038,2]
[353129160,1739589035583,-500.0,0.00011038,2]
[353129161,1739589035592,-500.0,0.00011038,2]
[353129162,1739589035600,-500.0,0.00011038,2]
[353129163,1739589035609,-503.00919491,0.00011038,2]
[353129164,1739589035620,-508.33069366,0.00011038,2]
[353129165,1739589035629,-506.48956664,0.00011038,2]
[353129166,1739589035638,-500.0,0.00011038,2]
[353129167,1739589035648,-637.05,0.00011038,2]
[353129168,1739589035658,-500.0,0.00011038,2]
[353129169,1739589035667,-500.0,0.00011038,2]
[353129170,1739589035676,-500.0,0.00011038,2]
[353129171,1739589035685,-530.66,0.00011038,2]
[353129172,1739589035695,-500.0,0.00011038,2]
[353129173,1739589035704,-500.0,0.00011038,2]
[353129174,1739589035714,-547.88,0.00011038,2]
[353129175,1739589035724,-502.46190482,0.00011038,2]
[353129176,1739589035733,-500.0,0.00011038,2]
[353129177,1739589035742,-500.0,0.00011038,2]
[353129178,1739589035752,-500.0,0.00011038,2]
[353129179,1739589035763,-506.18598427,0.00011038,2]
[353129180,1739589035772,-567.62,0.00011038,2]
[353129181,1739589035782,-500.0,0.00011038,2]
[353129182,1739589035791,-500.0,0.00011038,2]
[353129183,1739589035800,-500.0,0.00011038,2]
[353129184,1739589035809,-480.0,0.00011038,2]
[353129185,1739589035818,-500.0,0.00011038,2]
[353129186,1739589035828,-500.0,0.00011038,2]
[353129187,1739589035837,-500.0,0.00011038,2]
[353129188,1739589035846,-500.0,0.00011038,2]
[353129189,1739589035856,-500.0,0.00011038,2]
[353129190,1739589035866,-500.0,0.00011038,2]
[353129191,1739589035875,-500.0,0.00011038,2]
[353129192,1739589035887,-506.4338249,0.00011038,2]
[353129193,1739589035897,-507.10510218,0.00011038,2]
[353129194,1739589035907,-565.05,0.00011038,2]
[353129195,1739589035917,-500.0,0.00011038,2]
[353129196,1739589035927,-500.0,0.00011038,2]
[353129197,1739589035937,-703.49,0.00011038,2]
[353129198,1739589035946,-500.0,0.00011038,2]
[353129199,1739589035955,-512.35476158,0.00011038,2]
[353129200,1739589035964,-505.31315681,0.00011038,2]
[353129201,1739589035974,-573.0,0.00011038,2]
[353129202,1739589035984,-500.0,0.00011038,2]
[353129203,1739589035994,-500.0,0.00011038,2]
[353129204,1739589036003,-500.0,0.00011038,2]
[353129205,1739589036013,-500.0,0.00011038,2]
[353129206,1739589036022,-529.25,0.00011038,2]
[353129207,1739589036031,-500.0,0.00011038,2]
[353129208,1739589036042,-505.58130893,0.00011038,2]
[353129209,1739589036051,-500.0,0.00011038,2]
[353129210,1739589036061,-507.01413097,0.00011038,2]
[353129211,1739589036071,-500.0,0.00011038,2]
[353129212,1739589036081,-500.0,0.00011038,2]
[353129213,1739589036092,-500.0,0.00011038,2]
[353129214,1739589036102,-500.0,0.00011038,2]
[353129215,1739589036115,-500.0,0.00011038,2]
[353129216,1739589036126,-500.0,0.00011038,2]
[353129217,1739589036135,-500.0,0.00011038,2]
[353129218,1739589036144,-500.0,0.00011038,2]
[353129219,1739589036154,-500.0,0.00011038,2]
[353129220,1739589036163,-457.19321543,0.00011038,2]
[353129221,1739589036172,-500.0,0.00011038,2]
[353129222,1739589036182,-458.77744228,0.00011038,2]
[353129223,1739589036191,-634.59,0.00011038,2]
[353129224,1739589036201,-500.0,0.00011038,2]
[353129225,1739589036210,-500.0,0.00011038,2]
[353129226,1739589036220,-500.0,0.00011038,2]
[353129227,1739589036230,-500.0,0.00011038,2]
[353129228,1739589036239,-500.0,0.00011038,2]
[353129229,1739589036249,-507.59609519,0.00011038,2]
[353129230,1739589036258,-500.0,0.00011038,2]
[353129231,1739589036269,-500.0,0.00011038,2]
[353129232,1739589036279,-705.88,0.00011038,2]
[353129233,1739589036289,-511.80013896,0.00011038,2]
[353129234,1739589036299,-216.65098857,0.00011038,2]
[353129235,1739589036309,-505.48040054,0.00011038,2]
[353129236,1739589036320,-581.71,0.00011038,2]
[353129237,1739589036330,-500.0,0.00011038,2]
[353129238,1739589036340,-500.0,0.00011038,2]
[353129239,1739589036350,-500.0,0.00011038,2]
[353129240,1739589036360,-607.12,0.00011038,2]
[353129241,1739589036371,-500.0,0.00011038,2]
[353129242,1739589036380,-500.0,0.00011038,2]
[353129243,1739589036390,-500.0,0.00011038,2]
[353129244,1739589036400,-500.0,0.00011038,2]
[353129245,1739589036410,-509.87704397,0.00011038,2]
[353129246,1739589036421,-611.41,0.00011038,2]
[353129247,1739589036430,-619.67,0.00011038,2]
[353129248,1739589036439,-500.0,0.00011038,2]
[353129249,1739589036449,-500.0,0.00011038,2]
[353129250,1739589036460,-500.0,0.00011038,2]
[353129251,1739589036470,-500.0,0.00011038,2]
[353129252,1739589036480,-500.0,0.00011038,2]
[353129253,1739589036490,-500.0,0.00011038,2]
[353129254,1739589036500,-505.26712922,0.00011038,2]
[353129255,1739589036510,-346.81623381,0.00011038,2]
[353129256,1739589036519,-500.0,0.00011038,2]
[353129257,1739589036529,-645.98300804,0.00011038,2]
[353129258,1739589036538,-181.5306354,0.00011038,2]
[353129259,1739589036547,-505.02396638,0.00011038,2]
[353129260,1739589036557,-504.5231026,0.00011038,2]
[353129261,1739589036566,-527.71890834,0.00011038,2]
[353129262,1739589036575,-500.0,0.00011038,2]
[353129263,1739589036585,-500.0,0.00011038,2]
[353129264,1739589036594,-504.78699638,0.00011038,2]
[353129265,1739589036603,-500.0,0.00011038,2]
[353129266,1739589036613,-800.5,0.00011038,2]
[353129267,1739589036622,-500.0,0.00011038,2]
[353129268,1739589036632,-505.21711953,0.00011038,2]
[353129269,1739589036641,-500.0,0.00011038,2]
[353129270,1739589036651,-500.0,0.00011038,2]
[353129271,1739589036663,-500.0,0.00011038,2]
[353129272,1739589036673,-502.45588604,0.00011038,2]
[353129273,1739589036682,-500.0,0.00011038,2]
[353129274,1739589036692,-603.86254999,0.00011038,2]
[353129275,1739589036701,-821.84,0.00011038,2]
[353129276,1739589036710,-500.0,0.00011038,2]
[353129277,1739589036720,-193.01776001,0.00011038,2]
[353129278,1739589036730,-500.0,0.00011038,2]
[353129279,1739589036739,-503.75416407,0.00011038,2]
[353129280,1739589036749,-500.0,0.00011038,2]
[353129281,1739589036759,-752.08,0.00011038,2]
[353129282,1739589036768,-1006.25,0.00011038,2]
[353129283,1739589036777,-503.33415872,0.00011038,2]
[353129284,1739589036787,-502.22379074,0.00011038,2]
[353129285,1739589036796,-500.0,0.00011038,2]
[353129286,1739589036805,-500.0,0.00011038,2]
[353129287,1739589036815,-625.28,0.00011038,2]
[353129288,1739589036825,-662.82,0.00011038,2]
[353129289,1739589036835,-507.04981037,0.00011038,2]
[353129290,1739589036845,-550.75,0.00011038,2]
[353129291,1739589036855,-502.22943954,0.00011038,2]
[353129292,1739589036865,-500.0,0.00011038,2]
[353129293,1739589036876,-507.52499505,0.00011038,2]
[353129294,1739589036889,-504.79508014,0.00011038,2]
[353129295,1739589036903,-1444.9,0.00011038,2]
[353129296,1739589036913,-506.2265797,0.00011038,2]
[353129297,1739589036923,-505.95535394,0.00011038,2]
[353129298,1739589036934,-423.14595821,0.00011038,2]
[353129299,1739589036993,-82.9125933,0.00011038,2]
[353129300,1739589037003,-343.45384903,0.00011038,2]
[353129301,1739589037016,-156.54615097,0.00011038,2]
[353129302,1739589037027,-500.0,0.00011038,2]
[353129303,1739589037037,-500.0,0.00011038,2]
[353129304,1739589037047,-756.64,0.00011038,2]
[353129305,1739589037059,-279.18663861,0.00011038,2]
[353129306,1739589037069,-1168.34,0.00011038,2]
[353129307,1739589037080,-420.40893306,0.00011038,2]
[353129308,1739589037090,-500.0,0.00011038,2]
[353129309,1739589037100,-466.45243165,0.00011038,2]
[353129310,1739589037109,-500.0,0.00011038,2]
[353129311,1739589037120,-500.0,0.00011038,2]
[353129312,1739589037129,-500.0,0.00011038,2]
[353129313,1739589037139,-500.0,0.00011038,2]
[353129314,1739589037149,-629.73,0.00011038,2]
[353129315,1739589037159,-500.0,0.00011038,2]
[353129316,1739589037169,-506.1896095,0.00011038,2]
[353129317,1739589037178,-502.37581299,0.00011038,2]
[353129318,1739589037188,-500.0,0.00011038,2]
[353129319,1739589037198,-500.0,0.00011038,2]
[353129320,1739589037208,-494.63408169,0.00011038,2]
[353129321,1739589037217,-500.0,0.00011038,2]
[353129322,1739589037227,-500.0,0.00011038,2]
[353129323,1739589037236,-500.0,0.00011038,2]
[353129324,1739589037245,-500.0,0.00011038,2]
[353129325,1739589037254,-505.72061072,0.00011038,2]
[353129326,1739589037264,-704.51,0.00011038,2]
[353129327,1739589037275,-500.0,0.00011038,2]
[353129328,1739589037284,-660.3,0.00011038,2]
[353129329,1739589037294,-510.8182759,0.00011038,2]
[353129330,1739589037304,-1303.5,0.00011038,2]
[353129331,1739589037315,-524.65,0.00011038,2]
[353129332,1739589037324,-500.0,0.00011038,2]
[353129333,1739589037334,-503.97335362,0.00011038,2]
[353129334,1739589037343,-503.94239296,0.00011038,2]
[353129335,1739589037353,-298.28360153,0.00011038,2]
[353129336,1739589037363,-1224.97,0.00011038,2]
[353129337,1739589037373,-509.67406503,0.00011038,2]
[353129338,1739589037382,-500.0,0.00011038,2]
[353129339,1739589037392,-600.19,0.00011038,2]
[353129340,1739589037401,-2.89929064,0.00011038,2]
[353129341,1739589037436,-199.33995502,0.00011038,2]
[353129342,1739589037446,-500.0,0.00011038,2]
[353129343,1739589037457,-847.55,0.00011038,2]
[353129344,1739589037466,-460.35786001,0.00011038,2]